[Event "American Cup Women Elimination 2024"]
[Site "Saint Louis"]
[Date "2024.03.14"]
[Round "1.3"]
[White "Tang, Zoey"]
[Black "Zatonskih, Anna"]
[Result "0-1"]
[ECO "A40"]
[WhiteElo "2253"]
[BlackElo "2348"]
[Annotator "TA"]
[PlyCount "90"]
[EventDate "2024.03.11"]
[EventType "k.o."]
[EventCountry "USA"]
[SourceTitle "playchess.com"]
[Source "ChessBase"]
[SourceQuality "1"]
[TimeControl "900+10"]

{[%evp 9,90,35,66,48,78,73,87,65,68,66,62,29,68,-21,-16,-59,-54,-59,-64,-63,-46,-56,-51,-90,-105,-103,-91,-103,-106,-106,-89,-110,-35,-187,-171,-275,-268,-267,-279,-268,-265,-291,-140,-489,-476,-756,-731,-672,-587,-1108,-1072,-1279,-1227,-1506,-903,-930,-930,-930,-894,-870,-868,-837,-789,-868,-842,-1805,-1735,-1735,-1720,-1654,-1461,-1774,-1654,-1262,-1179,-1149,-1104,-1047,-1006,-6079,-6570,-5097,-5065]} 1. d4 {[%emt 0:00:03]} e6 {[%emt 0:00:01]} 2. c4 {[%emt 0:00:17]} b6 {[%emt 0:00:02]} 3. Nf3 {[%emt 0:00:55]} Bb7 {[%emt 0:00:02]} 4. g3 {[%emt 0:00:02]} Bxf3 {[%emt 0:02:06]} 5. exf3 {[%emt 0:00:02]} d5 {[%emt 0:00:05]} 6. Nc3 {[%emt 0:00:37]} Nf6 {[%emt 0:00:09]} 7. cxd5 {[%emt 0:00:27]} exd5 {[%emt 0:01:03]} 8. Bd3 {[%emt 0:00:11] White is better.} Be7 {[%emt 0:00:30]} 9. O-O {[%emt 0:00:12]} O-O {[%emt 0:00:02]} 10. f4 {[%emt 0:00:31]} c5 {[%emt 0:00:42]} 11. f5 {[%emt 0:01:41]} ({White should play} 11. dxc5 $14 bxc5 12. Be2) 11... Nc6 $11 {[%emt 0:01:37]} 12. Ne2 {[%emt 0:00:58]} c4 {[%emt 0:01:01]} (12... Nxd4 13. Nxd4 cxd4 14. h4) (12... cxd4 13. Bb5 Rc8 14. Qa4 $11) 13. Bc2 {[%emt 0:00:37]} b5 {[%emt 0:00:02]} 14. Bf4 {[%emt 0:00:41]} a5 {[%emt 0:00:19]} 15. h3 {[%emt 0:01:58]} Re8 {[%emt 0:03:01]} 16. g4 {[%emt 0:00:57]} Bd6 {[%emt 0:03:11][%cal Oe8e2]} 17. Be3 {[%emt 0:01:17]} Bc7 {[%emt 0:01:18]} 18. Kg2 {[%emt 0:00:07]} Qd6 {[%emt 0:00:39]} 19. Rh1 {[%emt 0:00:41] Wards off Qh2+} Ne4 {[%emt 0:00:48] Black is much more active.} 20. Bxe4 {[%emt 0:01:15]} dxe4 {[%emt 0:01:09]} (20... Rxe4 $17 21. Qd2 (21. Nc3 $2 Rxe3 22. fxe3 Qg3+ 23. Kf1 Re8 $19) 21... Rae8) 21. d5 $2 {[%emt 0:00:42] [#]} ({White should try} 21. b3 $15) 21... Nb4 $19 {[%emt 0:00:11]} 22. Nf4 {[%emt 0:02:42]} (22. a4 $142) 22... Nd3 {[%emt 0:00:13]} 23. Nxd3 {[%emt 0:00:10]} exd3 {[%emt 0:00:10]} 24. Qf3 {[%emt 0:00:04]} Rad8 {[%emt 0:00:01]} 25. a4 {[%emt 0:00:45]} Qxd5 {[%emt 0:00:19]} (25... Qb4 $19 {is more deadly. Strongly threatening ...Be5.} 26. axb5 Qxb5) 26. axb5 $2 {[%emt 0:00:08][%mdl 8192] White does not recover from this.} (26. Qxd5 $17 {nothing else works.} Rxd5 27. axb5) 26... Qxb5 {[%emt 0:00:07][%cal Oc7e5] Black is clearly winning.} 27. Rhc1 {[%emt 0:01:01]} (27. Rhb1 $142) 27... Be5 {[%emt 0:00:10]} 28. Bd2 {[%emt 0:00:18]} a4 {[%emt 0:00:01]} 29. Rab1 {[%emt 0:00:25]} Bxb2 {[%emt 0:00:19] And now ...a3 would win.} 30. Bc3 {[%emt 0:00:07]} a3 {[%emt 0:00:00]} 31. f6 {[%emt 0:00:11]} Qd5 {[%emt 0:00:26]} 32. Bxb2 {[%emt 0:00:12]} axb2 {[%emt 0:00:04]} 33. Rxb2 {[%emt 0:00:08]} Qxf3+ {[%emt 0:00:18]} 34. Kxf3 {[%emt 0:00:02][%mdl 4096] Endgame. KRR-KRR} c3 {[%emt 0:00:19]} 35. Rxc3 {[%emt 0:00:20]} d2 {[%emt 0:00:01]} ({Worse is} 35... gxf6 36. Rd2 $11) 36. Rxd2 {[%emt 0:00:01]} Rxd2 {[%emt 0:00:02]} 37. fxg7 {[%emt 0:00:04]} Kxg7 {[%emt 0:00:01]} 38. Kg3 {[%emt 0:00:03]} Red8 {[%emt 0:00:03]} 39. Rc5 {[%emt 0:00:02]} h6 {[%emt 0:00:06]} 40. h4 {[%emt 0:00:02]} R8d3+ {[%emt 0:00:08]} 41. f3 {[%emt 0:00:01]} Rd5 {[%emt 0:00:01]} 42. Rc7 {[%emt 0:00:03]} Ra5 {[%emt 0:00:05]} 43. Rc3 {[%emt 0:00:06]} Rd4 {[%emt 0:00:10] [#] White must now prevent ...h5.} 44. Rb3 {[%emt 0:00:06]} h5 {[%emt 0:00:06] aiming for ...hxg4.} 45. g5 {[%emt 0:00:05]} Raa4 {[%emt 0:00:01] Weighted Error Value: White=0.98/Black=0.47.  Loses game:     	White=1     	---        Mistake:       	White=4     	Black=2      Inaccurate:     	White=3     	Black=2      OK:         	White=8     	Black=10     Best:        	---       	Black=1} 0-1

[Event "American Cup Women Elimination 2024"]
[Site "Saint Louis"]
[Date "2024.03.14"]
[Round "1.4"]
[White "Zatonskih, Anna"]
[Black "Tang, Zoey"]
[Result "1/2-1/2"]
[ECO "A06"]
[WhiteElo "2348"]
[BlackElo "2253"]
[Annotator "TA"]
[PlyCount "117"]
[EventDate "2024.03.11"]
[EventType "k.o."]
[EventCountry "USA"]
[SourceTitle "playchess.com"]
[Source "ChessBase"]
[SourceQuality "1"]
[TimeControl "900+10"]

{[%evp 21,117,0,114,110,221,206,260,139,408,168,168,99,95,102,113,109,105,75,63,22,85,74,69,63,38,-14,0,-2,0,-8,0,-62,-53,-68,69,-91,-115,-106,89,0,0,-8,0,0,97,-150,-156,-196,-189,-217,-206,-240,-161,-168,-146,-127,-138,-118,-128,-141,-69,-164,-175,-191,-204,-345,-314,-313,-295,-295,-220,-284,-291,-289,-282,-282,-183,-270,-252,-2664,-1162,-4133,-60,-670,-634,-5105,-5098,-5098,-5083,-4997,8,8,8,8,8,8,8,8]} 1. Nf3 {[%emt 0:00:03]} d5 {[%emt 0:00:01]} 2. e3 {[%emt 0:00:02]} Bf5 {[%emt 0:01:06]} 3. c4 {[%emt 0:00:28]} c6 {[%emt 0:00:04]} 4. Qb3 {[%emt 0:01:40]} Qc7 {[%emt 0:01:07]} 5. cxd5 {[%emt 0:01:49]} cxd5 {[%emt 0:00:02]} 6. Nc3 {[%emt 0:00:02]} e6 {[%emt 0:00:43]} 7. Bb5+ {[%emt 0:02:37]} Nc6 {[%emt 0:00:23]} 8. Nd4 {[%emt 0:02:21]} Nge7 {[%emt 0:02:29]} 9. Qa4 {[%emt 0:01:25]} a6 {[%emt 0:01:02]} 10. b3 {[%emt 0:00:31]} Rc8 {[%emt 0:02:31]} 11. Bxc6+ {[%emt 0:01:06]} bxc6 {[%emt 0:00:04]} (11... Nxc6 $11 12. Nxf5 exf5) 12. Qxa6 $16 {[%emt 0:00:05]} Ng6 {[%emt 0:02:04]} (12... Qd8 $16) 13. Bb2 $18 {[%emt 0:01:27]} Bb4 {[%emt 0:01:55]} 14. Rc1 {[%emt 0:00:25]} (14. Nxf5 $18 exf5 15. Nxd5 cxd5 16. Qa4+ (16. Bxg7 Rg8 $15) 16... Qd7 17. Qxb4) 14... Nh4 $2 {[%emt 0:02:13][%mdl 8192]} (14... Ne7 $16 15. a3 Qa5 16. Qxa5 Bxa5 17. Nxf5 Nxf5) 15. O-O {[%emt 0:00:45]} (15. Nxd5 $142 exd5 16. Rxc6 Nxg2+ 17. Kf1) 15... O-O $18 {[%emt 0:00:29]} 16. Nxf5 {[%emt 0:00:57]} (16. g3 $18) 16... Nxf5 $16 {[%emt 0:00:04]} 17. Qe2 {[%emt 0:00:02]} Qe7 {[%emt 0:00:12]} 18. Na4 {[%emt 0:00:16]} Bd6 {[%emt 0:00:17]} 19. f4 {[%emt 0:00:23]} c5 {[%emt 0:00:14]} 20. Qg4 {[%emt 0:00:20]} g6 {[%emt 0:00:26]} (20... Qb7 $11 {remains equal.}) 21. Qf3 {[%emt 0:00:13]} (21. Qh3 {with more complications.} Ra8 22. g4 Ng7 23. Qg2) 21... h5 {[%emt 0:00:21]} 22. d3 {[%emt 0:00:25]} Qa7 {[%emt 0:00:22]} 23. Kh1 {[%emt 0:00:08]} (23. e4 $14 Nd4 24. Qf2) 23... c4 $1 $11 {[%emt 0:00:16]} 24. dxc4 {[%emt 0:00:17]} Nxe3 {[%emt 0:00:09]} ({Don't play} 24... Qxe3 $6 25. c5 (25. cxd5 Qxf3 26. Rxf3 exd5 $16) 25... Qxf3 26. Rxf3 $16) 25. Rfe1 {[%emt 0:01:13]} Ng4 {[%emt 0:00:02]} 26. h3 {[%emt 0:00:04]} (26. c5 $11 Bxc5 27. Rxc5 Rxc5 28. Nxc5 Qxc5 29. h3 Nf2+ 30. Kh2) 26... Nf2+ $15 {[%emt 0:00:03]} 27. Kh2 {[%emt 0:00:01]} Ne4 {[%emt 0:00:32]} (27... dxc4 $15 28. Rxc4 Rxc4 29. bxc4 Qxa4 30. Qxf2 Qxc4) 28. Rxe4 $2 {[%emt 0:00:10]} (28. Re2 $14 {stays ahead.}) 28... dxe4 $17 {[%emt 0:00:01]} 29. Qxe4 {[%emt 0:00:01]} Qb8 $2 {[%emt 0:00:16]} (29... Qf2 $17 30. Be5 Bxe5 31. fxe5 Qxa2) 30. g3 {[%emt 0:00:10]} (30. Rf1 $16) 30... h4 $11 {[%emt 0:00:06]} 31. c5 {[%emt 0:00:35]} hxg3+ {[%emt 0:00:03]} 32. Kxg3 {[%emt 0:00:01]} Be7 {[%emt 0:00:26]} (32... Bc7 $1 $11) 33. Rg1 $2 {[%emt 0:00:10]} (33. c6 $16 {keeps the pressure on.}) 33... Bxc5 $17 {[%emt 0:00:16]} 34. Nxc5 {[%emt 0:00:07]} Rxc5 {[%emt 0:00:02]} 35. Kh2 {[%emt 0:00:17]} Rf5 {[%emt 0:00:11]} 36. Rg4 {[%emt 0:00:17]} Qd6 {[%emt 0:00:14]} 37. Be5 {[%emt 0:00:05]} Qd2+ {[%emt 0:00:05]} 38. Rg2 {[%emt 0:00:01]} Qd5 {[%emt 0:00:07]} 39. Qxd5 {[%emt 0:00:12]} exd5 {[%emt 0:00:01]} 40. a4 {[%emt 0:00:05]} Ra8 {[%emt 0:00:04]} (40... f6 $17 41. Bd4 Kg7 (41... Rxf4 42. Bc5 $17)) 41. Ra2 {[%emt 0:00:07]} ({White should try} 41. Kg3 $1 $15) 41... f6 $19 {[%emt 0:00:05]} 42. Bc7 {[%emt 0:00:01]} d4 {[%emt 0:00:05]} 43. a5 {[%emt 0:00:02]} (43. Rd2 $142) 43... Rb5 {[%emt 0:00:10]} 44. Rd2 {[%emt 0:00:11]} Rxb3 {[%emt 0:00:18]} 45. Rxd4 {[%emt 0:00:01]} Ra3 {[%emt 0:00:08]} 46. Rd5 {[%emt 0:00:13]} Kf7 {[%emt 0:00:13]} 47. f5 {[%emt 0:00:15]} gxf5 {[%emt 0:00:03]} 48. Rxf5 {[%emt 0:00:01]} Rh8 {[%emt 0:00:22]} 49. Bg3 {[%emt 0:00:09]} (49. Kg2 {was called for.}) 49... Ra2+ $19 {[%emt 0:00:16]} 50. Kg1 $2 {[%emt 0:00:13]} (50. Rf2 Rxa5 51. Rf3) 50... Rxh3 $19 {[%emt 0:00:10]} 51. Bf2 {[%emt 0:00:06]} Rha3 $2 {[%emt 0:00:11]} ({Better is} 51... Rd3 $19 52. Bb6 Rdd2) 52. Bb6 $2 {[%emt 0:00:02][%mdl 8192]} (52. Bh4 $15) 52... Rb3 {[%emt 0:00:06]} 53. Rf2 {[%emt 0:00:12]} Rxf2 {[%emt 0:00:07]} 54. Kxf2 {[%emt 0:00:01]} Ra3 {[%emt 0:00:01]} 55. Bc7 {[%emt 0:00:05] [#]} Rxa5 $2 {[%emt 0:00:10]} (55... f5 $3 $19 {[%mdl 512]} 56. Ke2 Kg6) 56. Bxa5 $11 {[%emt 0:00:01]} Ke6 {[%emt 0:00:01]} 57. Bc3 {[%emt 0:00:02]} (57. Be1 $5) 57... f5 {[%emt 0:00:01]} 58. Bd2 {[%emt 0:00:01]} f4 {[%emt 0:00:00]} 59. Bxf4 {[%emt 0:00:01]} 1/2-1/2

[Event "American Cup Women Elimination 2024"]
[Site "Saint Louis"]
[Date "2024.03.16"]
[Round "2.1"]
[White "Tokhirjonova, Gulrukhbegim"]
[Black "Tang, Zoey"]
[Result "1/2-1/2"]
[ECO "D02"]
[WhiteElo "2365"]
[BlackElo "2253"]
[Annotator "TA"]
[PlyCount "145"]
[EventDate "2024.03.11"]
[EventType "k.o."]
[EventCountry "USA"]
[SourceTitle "playchess.com"]
[Source "ChessBase"]
[SourceQuality "1"]
[TimeControl "1500+10"]

{[%evp 51,145,-52,-39,-36,-41,-73,0,0,0,0,7,0,0,0,9,8,8,0,0,0,0,0,0,0,0,0,0,0,8,8,8,3,3,0,17,0,8,0,75,8,14,0,0,0,0,0,0,0,0,0,0,0,0,0,0,0,0,0,0,0,0,0,0,0,0,0,0,0,0,0,0,0,0,0,0,0,0,0,0,0,0,0,0,0,0,0,0,0,0,0,0,0,0,0,0,0]} 1. d4 {[%emt 0:10:01]} d5 {[%emt 0:10:02]} 2. Bf4 {[%emt 0:00:03]} Nf6 {[%emt 0:00:11]} 3. Nf3 {[%emt 0:00:03]} g6 {[%emt 0:00:35]} 4. e3 {[%emt 0:00:06]} Bg7 {[%emt 0:00:08]} 5. Nbd2 {[%emt 0:00:03]} c5 {[%emt 0:01:37]} 6. c3 {[%emt 0:00:02] D02: Damenbauernspiele.} O-O {[%emt 0:00:03]} 7. Be2 {[%emt 0:00:01]} b6 {[%emt 0:01:29]} 8. Ne5 {[%emt 0:00:08]} Bb7 {[%emt 0:00:16]} 9. h4 {[%emt 0:00:22]} h5 {[%emt 0:01:22]} 10. f3 $146 {[%emt 0:00:48]} ({Predecessor:} 10. g4 hxg4 11. Bxg4 Nh7 12. Ndf3 Nc6 13. Qd3 Nxe5 14. dxe5 e6 15. O-O-O c4 16. Qc2 {1-0 Tiilikainen,M (1888)-Tuominen,J (1849) Helsinki We KapSK A 2011 (3)}) 10... Nc6 {[%emt 0:01:04]} 11. g4 {[%emt 0:00:36]} cxd4 {[%emt 0:00:59]} 12. exd4 {[%emt 0:00:16]} hxg4 {[%emt 0:01:26]} 13. fxg4 {[%emt 0:00:29]} Nxe5 {[%emt 0:00:22]} 14. dxe5 {[%emt 0:02:06]} Ne4 {[%emt 0:00:24]} 15. Nf3 {[%emt 0:01:04]} Qc8 {[%emt 0:01:39]} 16. Nd4 {[%emt 0:01:46]} Qc7 {[%emt 0:01:12]} 17. Nf3 {[%emt 0:01:47]} Qc5 {[%emt 0:01:00]} 18. Qd4 {[%emt 0:00:45]} Qxd4 {[%emt 0:00:24]} 19. cxd4 {[%emt 0:00:42]} f6 {[%emt 0:00:58]} 20. O-O {[%emt 0:00:35]} g5 {[%emt 0:01:13]} 21. Bh2 {[%emt 0:03:22]} Bc8 {[%emt 0:00:28]} 22. hxg5 {[%emt 0:00:21]} Bxg4 {[%emt 0:00:45]} 23. gxf6 {[%emt 0:00:11]} exf6 {[%emt 0:00:01]} 24. Kg2 {[%emt 0:01:27]} Rac8 {[%emt 0:00:26]} 25. Rac1 {[%emt 0:00:30]} fxe5 {[%emt 0:00:32]} 26. dxe5 {[%emt 0:00:11]} (26. Bxe5 $11 Rxc1 27. Rxc1) 26... Bh6 $15 {[%emt 0:00:17]} 27. Rxc8 {[%emt 0:00:24]} Rxc8 {[%emt 0:00:01]} 28. Bd3 {[%emt 0:00:02]} Rf8 {[%emt 0:00:24]} (28... Rc7 $17 {Und jetzt ...Rg7 wäre schön.} 29. e6 Rh7 (29... Re7 30. Nd4 $11)) 29. Nd4 $11 {[%emt 0:00:31]} Rxf1 {[%emt 0:00:12]} 30. Bxf1 {[%emt 0:00:11]} Be3 {[%emt 0:00:13]} 31. Nc6 {[%emt 0:00:35]} Kf7 {[%emt 0:00:21]} 32. Nxa7 {[%emt 0:00:16]} Bd4 {[%emt 0:00:03]} 33. b4 {[%emt 0:00:13]} Ng5 {[%emt 0:00:13]} 34. Kh1 {[%emt 0:00:32]} Ke6 {[%emt 0:00:11]} 35. Nc6 {[%emt 0:00:03]} Be3 {[%emt 0:00:05]} 36. Bg1 {[%emt 0:00:13]} Bxg1 {[%emt 0:00:10]} 37. Kxg1 {[%emt 0:00:01]} Nf3+ {[%emt 0:00:01]} 38. Kf2 {[%emt 0:00:08]} Nxe5 {[%emt 0:00:02]} 39. Nd4+ {[%emt 0:00:01]} Kd7 {[%emt 0:00:25]} 40. Ke3 {[%emt 0:00:18]} Bd1 {[%emt 0:00:12]} 41. Bb5+ {[%emt 0:00:04]} Kc7 {[%emt 0:00:08]} 42. Nf5 {[%emt 0:00:27]} Bg4 {[%emt 0:00:13]} 43. Nd4 {[%emt 0:00:09]} Bd1 {[%emt 0:00:02]} 44. Kf4 {[%emt 0:00:05]} Nf7 {[%emt 0:00:19]} (44... Kd6 $11) 45. Kf5 {[%emt 0:00:21]} (45. Be8 $16 Nd6 46. Bc6) 45... Kd6 $11 {[%emt 0:00:06]} 46. Kf6 {[%emt 0:00:02]} Nh6 {[%emt 0:00:16]} 47. Nf5+ {[%emt 0:00:21]} Nxf5 {[%emt 0:00:01]} 48. Kxf5 {[%emt 0:00:01]} Bc2+ {[%emt 0:00:08]} 49. Kf4 {[%emt 0:00:01]} d4 {[%emt 0:00:15]} 50. Bc4 {[%emt 0:00:06]} Bb1 {[%emt 0:00:05]} 51. a3 {[%emt 0:00:04]} Bc2 {[%emt 0:00:02]} 52. Bg8 {[%emt 0:00:34]} Bb1 {[%emt 0:00:08]} 53. Bb3 {[%emt 0:00:06]} Bh7 {[%emt 0:00:12]} 54. a4 {[%emt 0:00:09]} Bb1 {[%emt 0:00:12]} 55. Kf3 {[%emt 0:00:08]} Bh7 {[%emt 0:00:12]} 56. Ke2 {[%emt 0:00:03]} Be4 {[%emt 0:00:04]} 57. Kd2 {[%emt 0:00:04]} Bf5 {[%emt 0:00:09]} 58. Bc4 {[%emt 0:00:09]} Bg6 {[%emt 0:00:08]} 59. Kc1 {[%emt 0:00:23]} Be8 {[%emt 0:00:10]} 60. Bb3 {[%emt 0:00:07]} Bg6 {[%emt 0:00:02]} 61. Bc2 {[%emt 0:00:23]} Be8 {[%emt 0:00:14]} 62. Kb2 {[%emt 0:00:05]} Bf7 {[%emt 0:00:14]} 63. Bd3 {[%emt 0:00:04]} Be6 {[%emt 0:00:26]} 64. Ka3 {[%emt 0:00:09]} Bf7 {[%emt 0:00:10]} 65. Kb2 {[%emt 0:00:14]} Be6 {[%emt 0:00:05]} 66. Kc2 {[%emt 0:00:02]} Bd7 {[%emt 0:00:10]} 67. Kb3 {[%emt 0:00:08]} Be6+ {[%emt 0:00:01]} 68. Bc4 {[%emt 0:00:24]} Bf5 {[%emt 0:00:11]} 69. Kb2 {[%emt 0:00:18]} Bd7 {[%emt 0:00:07]} 70. Kb3 $1 {[%emt 0:00:04]} Bf5 {[%emt 0:00:02]} 71. Kb2 {[%emt 0:00:10]} Bd7 {[%emt 0:00:01]} 72. Kb3 {[%emt 0:00:06]} Bf5 {[%emt 0:00:01]} 73. Kb2 {[%emt 0:00:02]} 1/2-1/2

[Event "American Cup Women Elimination 2024"]
[Site "Saint Louis"]
[Date "2024.03.16"]
[Round "2.1"]
[White "Paikidze, Nazi"]
[Black "Yu, Jennifer"]
[Result "1-0"]
[ECO "E04"]
[WhiteElo "2319"]
[BlackElo "2279"]
[Annotator "RC"]
[PlyCount "110"]
[EventDate "2024.03.11"]
[EventType "k.o."]
[EventCountry "USA"]
[SourceTitle "playchess.com"]
[Source "ChessBase"]
[SourceQuality "1"]
[TimeControl "1500+10"]

1. d4 {[%emt 0:10:02]} d5 {[%emt 0:10:04]} 2. c4 {[%emt 0:00:02]} e6 {[%emt 0:00:05]} 3. Nf3 {[%emt 0:00:02]} Nf6 {[%emt 0:00:04]} 4. g3 {[%emt 0:00:03]} Bb4+ {[%emt 0:00:21]} 5. Nbd2 {[%emt 0:00:07]} O-O {[%emt 0:00:38]} 6. Bg2 {[%emt 0:00:02]} dxc4 {[%emt 0:01:09]} 7. Qc2 {[%emt 0:00:03]} Nc6 {[%emt 0:01:30]} 8. Qxc4 {[%emt 0:00:37]} Ne4 {[%emt 0:01:05]} 9. Qd3 {[%emt 0:03:13]} Nxd2 {[%emt 0:01:08]} 10. Bxd2 {[%emt 0:00:02]} Qd6 {[%emt 0:02:28]} 11. O-O {[%emt 0:00:29]} Bxd2 {[%emt 0:01:01]} 12. Qxd2 {[%emt 0:00:07]} e5 {[%emt 0:00:50]} 13. dxe5 {[%emt 0:00:16]} Qxd2 {[%emt 0:00:01]} 14. Nxd2 {[%emt 0:00:02]} Nxe5 {[%emt 0:00:01]} 15. Ne4 {[%emt 0:01:03]} Bg4 {[%emt 0:01:54]} 16. f4 {[%emt 0:01:36]} Nc4 {[%emt 0:00:31]} 17. Rfc1 {[%emt 0:00:09]} Ne3 {[%emt 0:01:36]} 18. Rxc7 {[%emt 0:00:31]} Nxg2 {[%emt 0:00:23]} 19. Kxg2 {[%emt 0:00:05]} Rfe8 {[%emt 0:00:17]} 20. Nc3 {[%emt 0:00:40]} b5 {[%emt 0:00:50]} 21. Re1 {[%emt 0:02:18]} b4 {[%emt 0:00:28]} 22. Nd5 {[%emt 0:00:16]} Rad8 {[%emt 0:00:02]} 23. Nxb4 {[%emt 0:00:30]} a5 {[%emt 0:00:19]} 24. Nc6 {[%emt 0:00:35]} Rd2 {[%emt 0:00:08]} 25. Ne5 {[%emt 0:00:48]} Bxe2 {[%emt 0:00:17]} 26. Kg1 {[%emt 0:00:57]} Rxb2 {[%emt 0:01:18]} 27. Nxf7 {[%emt 0:00:04]} Rxa2 {[%emt 0:00:29]} 28. Nd6 {[%emt 0:00:15]} Rd8 {[%emt 0:00:05]} 29. Nf5 {[%emt 0:00:20]} Bf3 {[%emt 0:00:35]} 30. Rxg7+ {[%emt 0:00:31]} Kf8 {[%emt 0:00:16]} 31. Rxh7 {[%emt 0:00:29]} Rg2+ {[%emt 0:00:10]} 32. Kf1 {[%emt 0:00:01]} Rdd2 {[%emt 0:00:01]} 33. Rh8+ {[%emt 0:00:15]} Kf7 {[%emt 0:00:01]} 34. Re7+ {[%emt 0:00:06]} Kg6 {[%emt 0:00:03]} 35. Nh4+ {[%emt 0:00:19]} Kf6 {[%emt 0:00:03]} 36. Nxg2 {[%emt 0:00:08]} Kxe7 {[%emt 0:00:03]} 37. Ne3 {[%emt 0:00:14]} a4 {[%emt 0:00:06]} 38. Rh7+ {[%emt 0:00:21]} Ke6 {[%emt 0:00:26]} 39. Ra7 {[%emt 0:00:06]} Ra2 {[%emt 0:00:29]} 40. g4 {[%emt 0:00:14]} a3 {[%emt 0:00:17]} 41. f5+ {[%emt 0:00:37]} Kf6 {[%emt 0:00:13]} 42. h4 {[%emt 0:00:10]} Be2+ {[%emt 0:00:07]} 43. Ke1 {[%emt 0:00:52]} Bxg4 {[%emt 0:00:10]} 44. Ra6+ {[%emt 0:00:32]} Ke5 {[%emt 0:00:02]} 45. Nxg4+ {[%emt 0:00:08]} Kxf5 {[%emt 0:00:01]} 46. Nf2 {[%emt 0:00:24]} Kf4 {[%emt 0:00:11]} 47. h5 {[%emt 0:00:29]} Ra1+ {[%emt 0:00:19]} 48. Ke2 {[%emt 0:00:38]} Ra2+ {[%emt 0:00:13]} 49. Kf1 {[%emt 0:00:14]} Kg3 {[%emt 0:00:12]} 50. Rg6+ {[%emt 0:00:13]} Kf3 {[%emt 0:00:02]} 51. Rf6+ {[%emt 0:00:05]} Kg3 {[%emt 0:00:04]} 52. h6 {[%emt 0:00:07]} Rb2 {[%emt 0:00:17]} 53. h7 {[%emt 0:00:33]} a2 {[%emt 0:00:12]} 54. Ne4+ {[%emt 0:00:04]} Kg4 {[%emt 0:00:01]} 55. Ra6 {[%emt 0:00:08]} Rh2 {[%emt 0:00:34]} 1-0